[Event "GER-ch Youth-U10 2022"]
[Site "Willingen"]
[Date "2022.06.11"]
[Round "11.16"]
[White "Tak, Rannveer"]
[Black "Van 't Hof, Eric"]
[Result "1-0"]
[ECO "C60"]
[WhiteElo "1746"]
[BlackElo "2081"]
[Annotator "TA"]
[PlyCount "113"]
[EventDate "2022.06.05"]
[EventType "swiss"]
[EventRounds "11"]
[EventCountry "GER"]
[SourceTitle "playchess.com"]
[Source "ChessBase"]
[SourceQuality "1"]
[TimeControl "40/4500+30:900+30"]

{[%evp 15,113,28,37,39,51,31,37,32,35,29,36,34,58,56,72,39,39,39,39,0,19,22,19,20,19,19,10,22,24,16,31,29,22,9,7,5,12,8,72,72,72,73,85,72,116,116,458,115,136,0,443,443,372,0,0,0,0,0,0,0,-8,-8,-8,-8,-8,-8,0,0,29956,29953,6095,0,0,0,29979,29980,29980,29981,29981,29982,29982,29983,29986,29987,29987,29988,29988,29989,29989,29990,29990,29989,29994,29985,29987,29985,29986,29987,29987,29987]} 1. e4 {[%emt 0:00:01]} e5 {[%emt 0:00:07]} 2. Nf3 {[%emt 0:00:12]} Nc6 {[%emt 0:00:07]} 3. Bb5 {[%emt 0:00:07]} Nge7 {[%emt 0:00:09]} 4. O-O {[%emt 0:01:37]} g6 {[%emt 0:00:08]} 5. d4 {[%emt 0:01:02]} exd4 {[%emt 0:00:27]} 6. Nxd4 {[%emt 0:00:13]} Bg7 {[%emt 0:00:31]} 7. Be3 {[%emt 0:06:15]} O-O {[%emt 0:00:20]} 8. Nc3 {[%emt 0:02:41]} d6 {[%emt 0:00:28] is the legacy move (8...d5).} 9. Re1 {[%emt 0:02:35] C60: Ruy Lopez: Unusual Black 3rd moves and 3...g6.} Bd7 {[%emt 0:08:13] [#]} 10. Nf3 $146 {[%emt 0:01:51]} ({Predecessor:} 10. Bf1 Re8 11. Qd2 a6 12. Rad1 Ne5 13. f3 b5 14. Bh6 Bh8 15. Bg5 Qb8 16. Kh1 {1-0 (39) Nowicki,B (2305)-Stachowiak,K (2427) Szczawno Zdroj 2018}) 10... Ne5 {[%emt 0:01:51]} 11. Nxe5 {[%emt 0:01:23] White is slightly better.} Bxe5 {[%emt 0:00:17]} 12. Bxd7 {[%emt 0:00:24]} Qxd7 {[%emt 0:00:15]} 13. Bd4 {[%emt 0:00:19]} Nc6 {[%emt 0:00:38]} 14. Bxe5 {[%emt 0:03:46]} Nxe5 {[%emt 0:00:10]} 15. Nd5 {[%emt 0:00:27] And now Nf6+ would win.} (15. f4 $5 {[%cal Rf4e5]} Nc6 16. Nd5 $14) 15... Qd8 {[%emt 0:00:33] Inhibits Nf6+.} 16. f4 {[%emt 0:02:20]} Nd7 {[%emt 0:04:22]} 17. Qg4 {[%emt 0:09:55]} c6 {[%emt 0:01:42] [#]} 18. Qxd7 $1 {[%emt 0:04:22]} Qxd7 {[%emt 0:02:05]} 19. Nf6+ {[%emt 0:00:10]} Kg7 {[%emt 0:00:11]} 20. Nxd7 {[%emt 0:00:04]} Rfd8 {[%emt 0:00:12] [#]} 21. Nc5 $1 {[%emt 0:04:53]} dxc5 $11 {[%emt 0:00:13][%mdl 4096] Endgame KRR-KRR} 22. Rad1 {[%emt 0:00:03] Inhibits Rd2.} Rd4 {[%emt 0:00:57]} 23. Rxd4 {[%emt 0:02:18]} cxd4 $14 {[%emt 0:00:10] KR-KR} 24. Rd1 {[%emt 0:00:06]} c5 {[%emt 0:00:15]} 25. Kf2 {[%emt 0:00:42]} Re8 {[%emt 0:00:29]} 26. Kf3 {[%emt 0:00:30]} b6 {[%emt 0:00:21]} (26... Rd8 $11) 27. c3 $16 {[%emt 0:03:19]} dxc3 {[%emt 0:00:45]} 28. bxc3 {[%emt 0:00:07]} Re7 {[%emt 0:00:12]} 29. a4 {[%emt 0:02:44]} Kf8 {[%emt 0:00:15]} 30. Rd8+ {[%emt 0:01:04]} Re8 $2 {[%emt 0:00:24][%mdl 8192]} (30... Kg7 $16 {is a better chance.}) 31. Rd7 $2 {[%emt 0:06:38]} (31. Rxe8+ $1 $18 {and the rest is easy.} Kxe8 32. e5) 31... Re7 {[%emt 0:00:14]} 32. Rd8+ {[%emt 0:04:39][%mdl 8192]} (32. Rxe7 $1 $16 Kxe7 33. e5) 32... Re8 $1 $18 {[%emt 0:00:11] [#]} 33. Rxe8+ {[%emt 0:02:13]} Kxe8 {[%emt 0:00:08] KP-KP} 34. Kg4 $2 {[%emt 0:00:10]} (34. e5 $18 Ke7 35. Ke4) 34... a6 $11 {[%emt 0:00:10] ...b5 is the strong threat.} 35. c4 {[%emt 0:02:00] Prevents b5.} Kd7 {[%emt 0:00:27]} 36. Kf3 {[%emt 0:02:24] Black must now prevent g4.} Kc6 {[%emt 0:01:23]} 37. Ke3 {[%emt 0:01:06] Strongly threatening g4.} b5 {[%emt 0:00:27]} 38. cxb5+ {[%emt 0:00:22]} axb5 {[%emt 0:00:15]} 39. axb5+ {[%emt 0:00:50]} Kxb5 {[%emt 0:00:07]} 40. g4 $1 {[%emt 0:00:30]} Kc6 {[%emt 0:00:23]} 41. Kd3 {[%emt 0:18:36]} f6 $2 {[%emt 0:15:26][%mdl 8192]} (41... Kb5 $11) 42. Kc4 {[%emt 0:01:12]} Kd6 {[%emt 0:00:21] [#]} 43. Kd3 $2 {[%emt 0:05:53]} (43. Kb5 $1 $18 h6 44. h3) 43... Kc6 {[%emt 0:00:31]} 44. Kc4 {[%emt 0:04:36] aiming for h4.} g5 {[%emt 0:07:48][%mdl 8192]} (44... Kd6 $11) 45. fxg5 {[%emt 0:00:44] White mates.} fxg5 {[%emt 0:00:16] K3P-K3P} 46. e5 {[%emt 0:00:05][%cal Be4e5,Be5e6][%mdl 32]} Kd7 {[%emt 0:00:43]} 47. Kxc5 {[%emt 0:00:53] K3P-KPP} Ke6 {[%emt 0:00:38]} 48. Kd4 {[%emt 0:00:05]} Ke7 {[%emt 0:00:43]} 49. Kd5 {[%emt 0:00:14]} Kd7 {[%emt 0:00:43]} 50. e6+ {[%emt 0:00:11]} Ke7 {[%emt 0:00:06]} 51. Ke5 {[%emt 0:00:09]} h6 {[%emt 0:00:09]} 52. h3 {[%emt 0:00:14]} Ke8 {[%emt 0:00:15]} 53. Kf6 {[%emt 0:01:09]} Kf8 {[%emt 0:00:11]} 54. Kg6 {[%emt 0:00:43]} Ke7 {[%emt 0:00:16]} 55. Kxh6 {[%emt 0:00:07]} Kxe6 {[%emt 0:00:29]} 56. Kxg5 {[%emt 0:00:07]} Kf7 {[%emt 0:00:46]} 57. Kh6 {[%emt 0:00:23] Weighted Error Value: White=0.36/Black=0.48} 1-0

[Event "GER-ch Youth-U10 2022"]
[Site "Willingen"]
[Date "2022.06.11"]
[Round "11.17"]
[White "Junge, Mattheo Gabriel"]
[Black "Leonhardt, Max"]
[Result "1-0"]
[ECO "C89"]
[WhiteElo "1132"]
[BlackElo "1114"]
[Annotator "NA RC COMBH"]
[PlyCount "65"]
[EventDate "2022.06.05"]
[EventType "swiss"]
[EventRounds "11"]
[EventCountry "GER"]
[SourceTitle "playchess.com"]
[Source "ChessBase"]
[SourceQuality "1"]
[TimeControl "40/4500+30:900+30"]

1. e4 {[%emt 0:00:03]} e5 {[%emt 0:00:09]} 2. Nf3 {[%emt 0:00:07]} Nc6 {[%emt 0:00:09]} 3. Bb5 {[%emt 0:00:09]} a6 {[%emt 0:00:10]} 4. Ba4 {[%emt 0:00:07]} Nf6 {[%emt 0:00:09]} 5. O-O {[%emt 0:00:11]} b5 {[%emt 0:00:05]} 6. Bb3 {[%emt 0:00:13]} Be7 {[%emt 0:00:10]} 7. Re1 {[%emt 0:00:14]} O-O {[%emt 0:00:14]} 8. c3 {[%emt 0:00:10]} Bb7 {[%emt 0:00:10]} 9. d4 {[%emt 0:00:51]} exd4 {[%emt 0:00:24]} 10. cxd4 {[%emt 0:00:17]} d6 {[%emt 0:00:14]} 11. Bc2 {[%emt 0:00:35]} Nb4 {[%emt 0:01:22]} 12. Nbd2 {[%emt 0:02:13]} c5 {[%emt 0:00:13]} 13. d5 {[%emt 0:00:27]} Nxc2 {[%emt 0:01:12]} 14. Qxc2 {[%emt 0:00:09]} h6 {[%emt 0:00:14]} 15. a4 {[%emt 0:00:40]} Nh7 {[%emt 0:00:18]} 16. Nf1 {[%emt 0:00:31]} Qd7 {[%emt 0:00:45]} 17. Ng3 {[%emt 0:00:32]} Rfe8 {[%emt 0:00:45]} 18. Ra3 {[%emt 0:01:55]} b4 {[%emt 0:01:04]} 19. Rae3 {[%emt 0:01:04]} a5 {[%emt 0:00:35]} 20. b3 {[%emt 0:01:55]} Ng5 {[%emt 0:01:43]} 21. Bb2 {[%emt 0:02:17]} Nxf3+ {[%emt 0:00:36]} 22. Rxf3 {[%emt 0:00:27]} Bf8 {[%emt 0:05:08]} 23. Nf5 {[%emt 0:00:42]} g6 {[%emt 0:00:29]} 24. Ne3 {[%emt 0:01:06]} Ba6 {[%emt 0:00:40]} 25. h3 {[%emt 0:00:55]} Bg7 {[%emt 0:00:12]} 26. Ng4 {[%emt 0:01:27]} h5 {[%emt 0:00:25]} 27. Nf6+ {[%emt 0:00:26]} Bxf6 {[%emt 0:00:15]} 28. Bxf6 {[%emt 0:00:54]} Kh7 {[%emt 0:01:08]} 29. Qc1 {[%emt 0:02:30]} Qc8 {[%emt 0:02:08]} 30. Qg5 {[%emt 0:01:37]} Rd8 {[%emt 0:05:42]} 31. Bxd8 {[%emt 0:00:55]} Qxd8 {[%emt 0:00:14]} 32. Rxf7+ {[%emt 0:00:10]} Kh8 {[%emt 0:00:14]} 33. Qh6+ {[%emt 0:00:07]} 1-0

[Event "GER-ch Youth-U10 2022"]
[Site "Willingen"]
[Date "2022.06.11"]
[Round "11.18"]
[White "Chua, Daniel James"]
[Black "Li, Joshua"]
[Result "1-0"]
[ECO "C36"]
[WhiteElo "1314"]
[BlackElo "1599"]
[Annotator "NA RC COMBH"]
[PlyCount "145"]
[EventDate "2022.06.05"]
[EventType "swiss"]
[EventRounds "11"]
[EventCountry "GER"]
[SourceTitle "playchess.com"]
[Source "ChessBase"]
[SourceQuality "1"]
[TimeControl "40/4500+30:900+30"]

1. e4 {[%emt 0:00:01]} e5 {[%emt 0:00:37]} 2. f4 {[%emt 0:00:09]} exf4 {[%emt 0:00:08]} 3. Nf3 {[%emt 0:00:05]} d5 {[%emt 0:00:10]} 4. exd5 {[%emt 0:00:06]} Nf6 {[%emt 0:00:09]} 5. Bc4 {[%emt 0:00:42]} Nxd5 {[%emt 0:00:14]} 6. O-O {[%emt 0:00:28]} Nb6 {[%emt 0:00:36]} 7. Bb3 {[%emt 0:01:31]} Bg4 {[%emt 0:01:09]} 8. Bxf7+ {[%emt 0:00:15]} Kxf7 {[%emt 0:01:27]} 9. Ne5+ {[%emt 0:02:08]} Ke8 {[%emt 0:01:02]} 10. Nxg4 {[%emt 0:00:52]} Bc5+ {[%emt 0:00:39]} 11. Kh1 {[%emt 0:00:21]} Rf8 {[%emt 0:00:45]} 12. c3 {[%emt 0:01:48]} Bd6 {[%emt 0:00:55]} 13. Qc2 {[%emt 0:02:05]} Qh4 {[%emt 0:00:24]} 14. h3 {[%emt 0:03:25]} h5 {[%emt 0:01:19]} 15. Nf2 {[%emt 0:01:04]} Kd8 {[%emt 0:00:48]} 16. c4 {[%emt 0:01:39]} f3 {[%emt 0:00:23]} 17. Qg6 {[%emt 0:01:35]} Qf4 {[%emt 0:01:51]} 18. g3 {[%emt 0:00:40]} Qxg3 {[%emt 0:00:11]} 19. Qxg3 {[%emt 0:00:05]} Bxg3 {[%emt 0:00:06]} 20. Ne4 {[%emt 0:00:07]} h4 {[%emt 0:00:34]} 21. d3 {[%emt 0:00:23]} Re8 {[%emt 0:00:18]} 22. Rxf3 {[%emt 0:00:18]} Nxc4 {[%emt 0:00:14]} 23. Bg5+ {[%emt 0:00:57]} Kc8 {[%emt 0:00:35]} 24. Nxg3 {[%emt 0:00:13]} hxg3 {[%emt 0:00:57]} 25. dxc4 {[%emt 0:00:56]} Re1+ {[%emt 0:00:52]} 26. Kg2 {[%emt 0:00:02]} Re2+ {[%emt 0:00:14]} 27. Kxg3 {[%emt 0:00:04]} Rxb2 {[%emt 0:00:39]} 28. Nc3 {[%emt 0:00:25]} b6 {[%emt 0:00:34]} 29. Rd1 {[%emt 0:00:28]} Nd7 {[%emt 0:00:42]} 30. Rfd3 {[%emt 0:00:27]} Nc5 {[%emt 0:00:44]} 31. Rd8+ {[%emt 0:00:11]} Kb7 {[%emt 0:00:09]} 32. Rxa8 {[%emt 0:00:07]} Kxa8 {[%emt 0:00:05]} 33. Bf4 {[%emt 0:01:06]} Kb7 {[%emt 0:00:51]} 34. Re1 {[%emt 0:00:36]} Rc2 {[%emt 0:00:20]} 35. Nb5 {[%emt 0:00:15]} Nd3 {[%emt 0:01:33]} 36. Re7 {[%emt 0:00:18]} Nxf4 {[%emt 0:00:30]} 37. Rxc7+ {[%emt 0:00:31]} Kb8 {[%emt 0:00:13]} 38. Kxf4 {[%emt 0:00:09]} a6 {[%emt 0:00:24]} 39. Nd4 {[%emt 0:00:37]} Rxa2 {[%emt 0:01:34]} 40. Rxg7 {[%emt 0:00:25]} Ra4 {[%emt 0:00:13]} 41. Nc6+ {[%emt 0:15:41]} Kc8 {[%emt 0:15:31]} 42. Ne7+ {[%emt 0:00:18]} Kd8 {[%emt 0:00:20]} 43. Nc6+ {[%emt 0:00:10]} Kc8 {[%emt 0:00:10]} 44. Ne5 {[%emt 0:00:11]} b5 {[%emt 0:00:34]} 45. Ke4 {[%emt 0:01:19]} bxc4 {[%emt 0:01:13]} 46. Rg3 {[%emt 0:02:05]} Rb4 {[%emt 0:02:00]} 47. Rc3 {[%emt 0:00:25]} a5 {[%emt 0:03:05]} 48. Rxc4+ {[%emt 0:00:29]} Rxc4+ {[%emt 0:00:22]} 49. Nxc4 {[%emt 0:00:09]} a4 {[%emt 0:00:22]} 50. Nb6+ {[%emt 0:00:04]} Kd8 {[%emt 0:00:20]} 51. Nxa4 {[%emt 0:00:05]} Ke8 {[%emt 0:00:05]} 52. Kf5 {[%emt 0:00:04]} Kf8 {[%emt 0:00:26]} 53. Kg6 {[%emt 0:00:06]} Kg8 {[%emt 0:00:09]} 54. Nc5 {[%emt 0:00:01]} Kh8 {[%emt 0:00:19]} 55. Kh6 {[%emt 0:00:12]} Kg8 {[%emt 0:00:25]} 56. Nd3 {[%emt 0:00:14]} Kf7 {[%emt 0:00:13]} 57. h4 {[%emt 0:00:06]} Kg8 {[%emt 0:00:19]} 58. Nf4 {[%emt 0:00:07]} Kh8 {[%emt 0:01:08]} 59. Ng6+ {[%emt 0:00:17]} Kg8 {[%emt 0:00:07]} 60. h5 {[%emt 0:00:04]} Kf7 {[%emt 0:00:28]} 61. Kh7 {[%emt 0:00:36]} Kf6 {[%emt 0:00:34]} 62. Ne5 {[%emt 0:00:28]} Kg5 {[%emt 0:00:36]} 63. h6 {[%emt 0:00:04]} Kf6 {[%emt 0:00:46]} 64. Kg8 {[%emt 0:00:03]} Kxe5 {[%emt 0:00:30]} 65. h7 {[%emt 0:00:07]} Kd5 {[%emt 0:00:07]} 66. h8=Q {[%emt 0:00:06]} Ke4 {[%emt 0:00:13]} 67. Kf7 {[%emt 0:00:04]} Kd5 {[%emt 0:00:11]} 68. Qc3 {[%emt 0:00:13]} Ke4 {[%emt 0:00:07]} 69. Ke6 {[%emt 0:00:03]} Kf4 {[%emt 0:00:09]} 70. Qd3 {[%emt 0:00:03]} Kg5 {[%emt 0:00:39]} 71. Qg3+ {[%emt 0:00:02]} Kh6 {[%emt 0:00:41]} 72. Kf6 {[%emt 0:00:02]} Kh7 {[%emt 0:01:37]} 73. Qg7# {[%emt 0:00:30]} 1-0

[Event "GER-ch Youth-U10 2022"]
[Site "Willingen"]
[Date "2022.06.11"]
[Round "11.20"]
[White "Wolf, Noah"]
[Black "Menke, Raphael Wilhelm"]
[Result "1/2-1/2"]
[ECO "C50"]
[WhiteElo "1073"]
[BlackElo "1212"]
[Annotator "NA RC COMBH"]
[PlyCount "85"]
[EventDate "2022.06.05"]
[EventType "swiss"]
[EventRounds "11"]
[EventCountry "GER"]
[SourceTitle "playchess.com"]
[Source "ChessBase"]
[SourceQuality "1"]
[TimeControl "40/4500+30:900+30"]

1. e4 {[%emt 0:00:03]} e5 {[%emt 0:00:05]} 2. Nf3 {[%emt 0:00:43]} Nc6 {[%emt 0:03:09]} 3. Bc4 {[%emt 0:00:52]} Nf6 {[%emt 0:00:16]} 4. d3 {[%emt 0:00:28]} Bc5 {[%emt 0:00:22]} 5. Nc3 {[%emt 0:00:19]} d6 {[%emt 0:00:13]} 6. h3 {[%emt 0:00:11]} a6 {[%emt 0:01:29]} 7. a3 {[%emt 0:00:30]} Be6 {[%emt 0:00:19]} 8. Bxe6 {[%emt 0:03:50]} fxe6 {[%emt 0:00:32]} 9. Qe2 {[%emt 0:04:22]} Qe7 {[%emt 0:01:23]} 10. Bg5 {[%emt 0:03:09]} Ba7 {[%emt 0:00:46]} 11. Nh4 {[%emt 0:02:08]} Qf7 {[%emt 0:01:03]} 12. Nf3 {[%emt 0:03:54]} h6 {[%emt 0:02:22]} 13. Be3 {[%emt 0:01:13]} Nh5 {[%emt 0:00:59]} 14. Rg1 {[%emt 0:04:37]} O-O-O {[%emt 0:04:26]} 15. O-O-O {[%emt 0:02:12]} Rhe8 {[%emt 0:01:28]} 16. Kb1 {[%emt 0:01:27]} d5 {[%emt 0:01:07]} 17. Bxa7 {[%emt 0:00:21]} Nf4 {[%emt 0:01:01]} 18. Qd2 {[%emt 0:03:27]} Nxa7 {[%emt 0:04:25]} 19. Nxe5 {[%emt 0:00:38]} Qf6 {[%emt 0:00:16]} 20. d4 {[%emt 0:04:27]} Ng6 {[%emt 0:01:52]} 21. Qe3 {[%emt 0:02:44]} Kb8 {[%emt 0:01:25]} 22. exd5 {[%emt 0:01:18]} exd5 {[%emt 0:00:48]} 23. Nd7+ {[%emt 0:00:21]} Rxd7 {[%emt 0:00:48]} 24. Qxe8+ {[%emt 0:00:12]} Rd8 {[%emt 0:00:11]} 25. Qe3 {[%emt 0:01:06]} Nc6 {[%emt 0:00:19]} 26. Qf3 {[%emt 0:00:41]} Qd6 {[%emt 0:00:33]} 27. Rge1 {[%emt 0:07:50]} Na5 {[%emt 0:03:05]} 28. Nxd5 {[%emt 0:01:14]} Qxd5 {[%emt 0:00:57]} 29. Re8 {[%emt 0:00:20]} Qd7 {[%emt 0:02:27]} 30. Rxd8+ {[%emt 0:02:05]} Qxd8 {[%emt 0:00:13]} 31. Qf5 {[%emt 0:00:20]} Qg5 {[%emt 0:01:13]} 32. Qxg5 {[%emt 0:00:41]} hxg5 {[%emt 0:00:10]} 33. d5 {[%emt 0:00:31]} Nc4 {[%emt 0:00:20]} 34. Rd4 {[%emt 0:00:54]} Nd6 {[%emt 0:00:44]} 35. c4 {[%emt 0:01:03]} Kc8 {[%emt 0:03:12]} 36. c5 {[%emt 0:00:42]} Nf7 {[%emt 0:00:34]} 37. Re4 {[%emt 0:01:05]} Kd7 {[%emt 0:01:38]} 38. c6+ {[%emt 0:00:21]} bxc6 {[%emt 0:00:31]} 39. dxc6+ {[%emt 0:00:07]} Kd6 {[%emt 0:02:01]} 40. Ra4 {[%emt 0:00:25]} Nge5 {[%emt 0:01:26]} 41. Rxa6 {[%emt 0:18:12]} Nxc6 {[%emt 0:15:45]} 42. Kc2 {[%emt 0:00:17]} Kc5 {[%emt 0:01:12]} 43. Ra8 {[%emt 0:00:53]} 1/2-1/2

[Event "GER-ch Youth-U10 2022"]
[Site "Willingen"]
[Date "2022.06.11"]
[Round "11.21"]
[White "Yao, Haiyang"]
[Black "Fels, Mattis"]
[Result "1-0"]
[ECO "B23"]
[WhiteElo "1098"]
[BlackElo "1395"]
[Annotator "NA RC COMBH"]
[PlyCount "129"]
[EventDate "2022.06.05"]
[EventType "swiss"]
[EventRounds "11"]
[EventCountry "GER"]
[SourceTitle "playchess.com"]
[Source "ChessBase"]
[SourceQuality "1"]
[TimeControl "40/4500+30:900+30"]

1. e4 {[%emt 0:00:02]} c5 {[%emt 0:00:00]} 2. Nc3 {[%emt 0:00:05]} e6 {[%emt 0:00:19]} 3. g3 {[%emt 0:00:52]} d5 {[%emt 0:00:42]} 4. Bg2 {[%emt 0:01:27]} d4 {[%emt 0:00:59]} 5. Nce2 {[%emt 0:00:55]} d3 {[%emt 0:00:38]} 6. Nf4 {[%emt 0:01:21]} c4 {[%emt 0:10:26]} 7. Nf3 {[%emt 0:01:52]} g5 {[%emt 0:04:57]} 8. Nh5 {[%emt 0:00:52]} g4 {[%emt 0:01:05]} 9. Ng1 {[%emt 0:02:19]} e5 {[%emt 0:02:12]} 10. f3 {[%emt 0:02:48]} Nh6 {[%emt 0:09:48]} 11. h3 {[%emt 0:01:34]} gxh3 {[%emt 0:10:51]} 12. Bxh3 {[%emt 0:00:42]} Bxh3 {[%emt 0:01:31]} 13. Rxh3 {[%emt 0:00:49]} Qb6 {[%emt 0:00:30]} 14. Rh1 {[%emt 0:00:30]} Bc5 {[%emt 0:01:42]} 15. Nh3 {[%emt 0:00:46]} Rg8 {[%emt 0:05:58]} 16. c3 {[%emt 0:01:31]} Nd7 {[%emt 0:04:43]} 17. Qa4 {[%emt 0:01:55]} O-O-O {[%emt 0:01:00]} 18. b4 {[%emt 0:00:19]} Be7 {[%emt 0:00:32]} 19. b5 {[%emt 0:00:55]} Nc5 {[%emt 0:01:50]} 20. Qxc4 {[%emt 0:04:48]} Qg6 {[%emt 0:00:11]} 21. Nf2 {[%emt 0:01:20]} f5 {[%emt 0:01:06]} 22. Ba3 {[%emt 0:02:20]} b6 {[%emt 0:00:36]} 23. Bxc5 {[%emt 0:02:09]} Bxc5 {[%emt 0:00:12]} 24. Nxd3 {[%emt 0:00:43]} Qd6 {[%emt 0:01:00]} 25. Ke2 {[%emt 0:03:42]} Rd7 {[%emt 0:01:53]} 26. Nxc5 {[%emt 0:03:00]} Qxd2+ {[%emt 0:00:27]} 27. Kf1 {[%emt 0:00:12]} bxc5 {[%emt 0:00:16]} 28. Nf6 {[%emt 0:02:36]} Rxg3 {[%emt 0:02:24]} 29. Qxc5+ {[%emt 0:01:00]} Rc7 {[%emt 0:00:33]} 30. Qf2 {[%emt 0:01:34]} Qxf2+ {[%emt 0:00:33]} 31. Kxf2 {[%emt 0:00:14]} Rg6 {[%emt 0:00:10]} 32. Nd5 {[%emt 0:00:23]} Rf7 {[%emt 0:01:03]} 33. exf5 {[%emt 0:01:10]} Nxf5 {[%emt 0:00:06]} 34. Rh5 {[%emt 0:00:44]} Kd7 {[%emt 0:00:30]} 35. Re1 {[%emt 0:00:30]} Kd6 {[%emt 0:00:43]} 36. Rd1 {[%emt 0:01:31]} Kc5 {[%emt 0:01:19]} 37. Ne3 {[%emt 0:00:49]} Nxe3 {[%emt 0:04:35]} 38. Rxe5+ {[%emt 0:01:13]} Kc4 {[%emt 0:00:19]} 39. Kxe3 {[%emt 0:00:42]} Kxc3 {[%emt 0:00:26]} 40. Rc5+ {[%emt 0:00:38]} Kb4 {[%emt 0:00:10]} 41. Rdc1 {[%emt 0:15:56]} Re6+ {[%emt 0:17:20]} 42. Kf2 {[%emt 0:00:27]} Ref6 {[%emt 0:00:51]} 43. R5c3 {[%emt 0:03:23]} Kxb5 {[%emt 0:01:49]} 44. Rb3+ {[%emt 0:00:09]} Ka6 {[%emt 0:00:49]} 45. Rc4 {[%emt 0:00:31]} Rf4 {[%emt 0:01:16]} 46. Rxf4 {[%emt 0:02:15]} Rxf4 {[%emt 0:00:09]} 47. Kg3 {[%emt 0:00:10]} Rd4 {[%emt 0:01:03]} 48. f4 {[%emt 0:00:21]} Rd2 {[%emt 0:00:18]} 49. Rf3 {[%emt 0:00:35]} Rxa2 {[%emt 0:00:19]} 50. f5 {[%emt 0:00:07]} Rd2 {[%emt 0:00:32]} 51. f6 {[%emt 0:00:04]} Rd8 {[%emt 0:00:09]} 52. f7 {[%emt 0:00:07]} Rf8 {[%emt 0:00:08]} 53. Kg4 {[%emt 0:00:08]} Kb6 {[%emt 0:00:12]} 54. Kg5 {[%emt 0:00:13]} a5 {[%emt 0:00:23]} 55. Kh6 {[%emt 0:00:26]} a4 {[%emt 0:00:23]} 56. Kg7 {[%emt 0:00:04]} a3 {[%emt 0:00:44]} 57. Kxf8 {[%emt 0:00:50]} a2 {[%emt 0:00:11]} 58. Ra3 {[%emt 0:00:03]} a1=N {[%emt 0:00:13]} 59. Rxa1 {[%emt 0:00:01]} h5 {[%emt 0:00:14]} 60. Ke7 {[%emt 0:00:10]} h4 {[%emt 0:00:07]} 61. f8=Q {[%emt 0:00:07]} h3 {[%emt 0:00:55]} 62. Qc8 {[%emt 0:01:11]} h2 {[%emt 0:00:48]} 63. Rb1+ {[%emt 0:00:09]} Ka7 {[%emt 0:00:08]} 64. Qb8+ {[%emt 0:00:07]} Ka6 {[%emt 0:00:16]} 65. Qa8# {[%emt 0:00:08]} 1-0

[Event "GER-ch Youth-U10 2022"]
[Site "Willingen"]
[Date "2022.06.11"]
[Round "11.22"]
[White "Mulgunov, Jefim Nikolaj"]
[Black "Heitmann, Erik"]
[Result "1-0"]
[ECO "B40"]
[WhiteElo "1055"]
[BlackElo "1287"]
[Annotator "NA RC COMBH"]
[PlyCount "43"]
[EventDate "2022.06.05"]
[EventType "swiss"]
[EventRounds "11"]
[EventCountry "GER"]
[SourceTitle "playchess.com"]
[Source "ChessBase"]
[SourceQuality "1"]
[TimeControl "40/4500+30:900+30"]

1. e4 {[%emt 0:00:01]} c5 {[%emt 0:00:07]} 2. d4 {[%emt 0:00:06]} e6 {[%emt 0:00:45]} 3. Nf3 {[%emt 0:00:33]} cxd4 {[%emt 0:00:51]} 4. Nxd4 {[%emt 0:00:13]} Nf6 {[%emt 0:00:09]} 5. Nc3 {[%emt 0:00:08]} Bb4 {[%emt 0:01:20]} 6. Bd3 {[%emt 0:00:28]} Nc6 {[%emt 0:00:43]} 7. Nf3 {[%emt 0:00:21]} d5 {[%emt 0:01:18]} 8. exd5 {[%emt 0:00:54]} Nxd5 {[%emt 0:00:18]} 9. Bd2 {[%emt 0:00:09]} Nxc3 {[%emt 0:00:59]} 10. bxc3 {[%emt 0:00:22]} Be7 {[%emt 0:00:21]} 11. O-O {[%emt 0:00:12]} O-O {[%emt 0:00:16]} 12. Bf4 {[%emt 0:00:49]} Bf6 {[%emt 0:01:38]} 13. Qe2 {[%emt 0:00:30]} Bxc3 {[%emt 0:00:57]} 14. Rad1 {[%emt 0:00:07]} Qe7 {[%emt 0:02:28]} 15. Bxh7+ {[%emt 0:01:21]} Kh8 {[%emt 0:03:55]} 16. Bd6 {[%emt 0:00:29]} Qe8 {[%emt 0:01:24]} 17. Bxf8 {[%emt 0:00:38]} Qxf8 {[%emt 0:00:09]} 18. Qd3 {[%emt 0:00:33]} Bf6 {[%emt 0:00:48]} 19. Be4 {[%emt 0:01:07]} Nb4 {[%emt 0:04:29]} 20. Qb5 {[%emt 0:00:31]} Nxa2 {[%emt 0:00:29]} 21. Qh5+ {[%emt 0:00:15]} Kg8 {[%emt 0:01:30]} 22. Qh7# {[%emt 0:00:06]} 1-0